[Event "Early-Titled-Tuesday-Blitz-September-05-2023"]
[Site "Chess.com"]
[Date "2023.09.05"]
[Round "4"]
[White "JoliyRoger"]
[Black "DKmirl"]
[Result "1-0"]
[WhiteElo "2481"]
[BlackElo "2259"]
[TimeControl "180+1"]
[EndTime "8:38:16 PDT"]
[Termination "JoliyRoger won on time"]

1. Nf3 {[%clk 0:03:00.3]} 1... Nf6 {[%clk 0:02:59.7]} 2. d4 {[%clk 0:03:00.1]}
2... e6 {[%clk 0:02:58.7]} 3. c4 {[%clk 0:03:00.3]} 3... Bb4+ {[%clk 0:02:54.2]}
4. Bd2 {[%clk 0:03:00.2]} 4... Qe7 {[%clk 0:02:54.4]} 5. Qc2 {[%clk 0:02:59.2]}
5... d5 {[%clk 0:02:52]} 6. e3 {[%clk 0:02:51.4]} 6... Ne4 {[%clk 0:02:31.4]} 7.
Bd3 {[%clk 0:02:42.7]} 7... Nxd2 {[%clk 0:02:27.6]} 8. Nbxd2 {[%clk 0:02:42.2]}
8... h6 {[%clk 0:02:20.6]} 9. O-O {[%clk 0:02:40.9]} 9... O-O {[%clk 0:02:14.4]}
10. Rac1 {[%clk 0:02:32.2]} 10... c6 {[%clk 0:02:06.1]} 11. e4 {[%clk
0:02:23.7]} 11... Bxd2 {[%clk 0:01:46.2]} 12. Qxd2 {[%clk 0:02:18.2]} 12... dxe4
{[%clk 0:01:44.4]} 13. Bxe4 {[%clk 0:02:17.6]} 13... Nd7 {[%clk 0:01:41.1]} 14.
Rfe1 {[%clk 0:02:16.9]} 14... Nf6 {[%clk 0:01:41.1]} 15. c5 {[%clk 0:01:53.8]}
15... Rd8 {[%clk 0:01:21.4]} 16. Ne5 {[%clk 0:01:44.9]} 16... Bd7 {[%clk
0:01:18.6]} 17. Qe3 {[%clk 0:01:44.1]} 17... Be8 {[%clk 0:01:14.8]} 18. Nc4
{[%clk 0:01:40.1]} 18... Rd7 {[%clk 0:00:58.7]} 19. Rcd1 {[%clk 0:01:36.6]}
19... Rad8 {[%clk 0:00:58.3]} 20. Nd6 {[%clk 0:01:29.9]} 20... Kf8 {[%clk
0:00:32]} 21. f4 {[%clk 0:01:22]} 21... a6 {[%clk 0:00:14.3]} 22. Bf3 {[%clk
0:01:13]} 22... Nd5 {[%clk 0:00:09.7]} 23. Bxd5 {[%clk 0:00:58.6]} 23... cxd5
{[%clk 0:00:03.9]} 24. b4 {[%clk 0:00:52.3]} 24... Rxd6 {[%clk 0:00:03.8]} 25.
cxd6 {[%clk 0:00:51.8]} 25... Qxd6 {[%clk 0:00:04.7]} 26. a3 {[%clk 0:00:52.1]}
26... Bb5 {[%clk 0:00:03.7]} 27. Rc1 {[%clk 0:00:49.7]} 27... Bc4 {[%clk
0:00:03.8]} 28. Rc3 {[%clk 0:00:44.7]} 28... b5 {[%clk 0:00:03]} 29. Qf2 {[%clk
0:00:44.3]} 29... Re8 {[%clk 0:00:01.1]} 30. Rg3 {[%clk 0:00:44.5]} 30... g6
{[%clk 0:00:01.2]} 31. Rh3 {[%clk 0:00:43.3]} 31... h5 {[%clk 0:00:01.8]} 32.
Qe3 {[%clk 0:00:42.6]} 32... Qe7 {[%clk 0:00:02.2]} 33. Rg3 {[%clk 0:00:41.2]}
33... Qf6 {[%clk 0:00:02.4]} 34. Rg5 {[%clk 0:00:41.6]} 34... Rc8 {[%clk
0:00:01.8]} 35. Re5 {[%clk 0:00:39.8]} 35... Bb3 {[%clk 0:00:01.8]} 36. Rc1
{[%clk 0:00:39.2]} 36... Rxc1+ {[%clk 0:00:01.3]} 37. Qxc1 {[%clk 0:00:39.2]}
37... Qd8 {[%clk 0:00:02.2]} 38. Qc5+ {[%clk 0:00:38.6]} 38... Kg8 {[%clk
0:00:01.9]} 39. Qc3 {[%clk 0:00:36.5]} 39... Bc4 {[%clk 0:00:02.5]} 40. Qg3
{[%clk 0:00:35.6]} 40... Qf6 {[%clk 0:00:03.2]} 41. Qg5 {[%clk 0:00:33.7]} 41...
Qxg5 {[%clk 0:00:03]} 42. fxg5 {[%clk 0:00:32.8]} 42... Kf8 {[%clk 0:00:02.5]}
43. g3 {[%clk 0:00:33.3]} 43... Ke7 {[%clk 0:00:02.6]} 44. Re1 {[%clk
0:00:33.7]} 44... Bd3 {[%clk 0:00:02.7]} 45. Kf2 {[%clk 0:00:34.6]} 45... Bc4
{[%clk 0:00:02.7]} 46. Ke3 {[%clk 0:00:35]} 46... Kd6 {[%clk 0:00:02.7]} 47. Kf4
{[%clk 0:00:35.5]} 47... Bb3 {[%clk 0:00:01.8]} 48. h4 {[%clk 0:00:34]} 48...
Bc4 {[%clk 0:00:01.9]} 49. g4 {[%clk 0:00:33.5]} 49... hxg4 {[%clk 0:00:01.3]}
50. Kxg4 {[%clk 0:00:34.4]} 50... Bb3 {[%clk 0:00:01.1]} 51. Rf1 {[%clk
0:00:32.9]} 1-0

[Event "Early-Titled-Tuesday-Blitz-September-05-2023"]
[Site "Chess.com"]
[Date "2023.09.05"]
[Round "4"]
[White "Gareth-Bale11"]
[Black "CrushingKings"]
[Result "1/2-1/2"]
[WhiteElo "2787"]
[BlackElo "2557"]
[TimeControl "180+1"]
[EndTime "8:38:18 PDT"]
[Termination "Game drawn by repetition"]

1. d4 {[%clk 0:03:00.9]} 1... g6 {[%clk 0:03:00.9]} 2. e4 {[%clk 0:02:58.4]}
2... Bg7 {[%clk 0:03:01.1]} 3. Nf3 {[%clk 0:02:58.7]} 3... c6 {[%clk 0:03:01.8]}
4. Nbd2 {[%clk 0:02:54]} 4... d5 {[%clk 0:03:02.2]} 5. c3 {[%clk 0:02:53.9]}
5... dxe4 {[%clk 0:03:01.7]} 6. Nxe4 {[%clk 0:02:54.8]} 6... Nf6 {[%clk
0:03:01.5]} 7. Bd3 {[%clk 0:02:55]} 7... O-O {[%clk 0:03:01.4]} 8. O-O {[%clk
0:02:54.6]} 8... Nbd7 {[%clk 0:03:01.8]} 9. h3 {[%clk 0:02:53.9]} 9... Nxe4
{[%clk 0:02:56]} 10. Bxe4 {[%clk 0:02:54.8]} 10... e5 {[%clk 0:02:55.8]} 11. Bg5
{[%clk 0:02:51.8]} 11... Qc7 {[%clk 0:02:56.1]} 12. Re1 {[%clk 0:02:48.3]} 12...
exd4 {[%clk 0:02:54.2]} 13. cxd4 {[%clk 0:02:48.3]} 13... Nb6 {[%clk 0:02:51.2]}
14. a4 {[%clk 0:02:42]} 14... a5 {[%clk 0:02:48.8]} 15. Qc1 {[%clk 0:02:23.5]}
15... Be6 {[%clk 0:02:37.6]} 16. h4 {[%clk 0:02:18.3]} 16... Rfe8 {[%clk
0:02:05.1]} 17. h5 {[%clk 0:02:11.6]} 17... Bd5 {[%clk 0:02:02.4]} 18. Bxd5
{[%clk 0:02:04.8]} 18... Nxd5 {[%clk 0:02:01.5]} 19. h6 {[%clk 0:02:04.4]} 19...
Bh8 {[%clk 0:02:00.5]} 20. Qd2 {[%clk 0:01:52.3]} 20... b6 {[%clk 0:01:51.6]}
21. Rac1 {[%clk 0:01:50.6]} 21... Qd6 {[%clk 0:01:50.8]} 22. b3 {[%clk
0:01:49.4]} 22... Bf6 {[%clk 0:00:55.3]} 23. Bxf6 {[%clk 0:01:43.8]} 23... Nxf6
{[%clk 0:00:56.2]} 24. Ne5 {[%clk 0:01:39.6]} 24... c5 {[%clk 0:00:56.5]} 25.
Qf4 {[%clk 0:01:18.4]} 25... Re6 {[%clk 0:00:54.5]} 26. dxc5 {[%clk 0:01:12.8]}
26... bxc5 {[%clk 0:00:54.2]} 27. Rcd1 {[%clk 0:01:07.4]} 27... Qc7 {[%clk
0:00:47.2]} 28. Nxg6 {[%clk 0:01:06.7]} 28... Rxe1+ {[%clk 0:00:10.7]} 29. Rxe1
{[%clk 0:01:05.2]} 29... Qxf4 {[%clk 0:00:11.4]} 30. Nxf4 {[%clk 0:01:05.7]}
30... Ng4 {[%clk 0:00:11.9]} 31. Rc1 {[%clk 0:01:01.1]} 31... Rb8 {[%clk
0:00:08.8]} 32. Rxc5 {[%clk 0:01:00]} 32... Nxh6 {[%clk 0:00:09]} 33. Rxa5
{[%clk 0:00:47.6]} 33... Rxb3 {[%clk 0:00:09.1]} 34. f3 {[%clk 0:00:48.2]} 34...
Kg7 {[%clk 0:00:08.4]} 35. Kf2 {[%clk 0:00:43.3]} 35... Ng8 {[%clk 0:00:08.1]}
36. Rb5 {[%clk 0:00:41.7]} 36... Ra3 {[%clk 0:00:08.1]} 37. a5 {[%clk
0:00:41.7]} 37... Ne7 {[%clk 0:00:08.8]} 38. g4 {[%clk 0:00:37.4]} 38... Nc6
{[%clk 0:00:08.9]} 39. Nh5+ {[%clk 0:00:31.2]} 39... Kf8 {[%clk 0:00:09.5]} 40.
Nf6 {[%clk 0:00:25.3]} 40... h6 {[%clk 0:00:10]} 41. Nd7+ {[%clk 0:00:19.8]}
41... Ke7 {[%clk 0:00:10.4]} 42. Nb8 {[%clk 0:00:12.3]} 42... Nxb8 {[%clk
0:00:08.4]} 43. Rxb8 {[%clk 0:00:13.2]} 43... Rxa5 {[%clk 0:00:08.7]} 44. Rb6
{[%clk 0:00:13.2]} 44... h5 {[%clk 0:00:08.3]} 45. Kg3 {[%clk 0:00:11.7]} 45...
hxg4 {[%clk 0:00:08.3]} 46. fxg4 {[%clk 0:00:11.7]} 46... Kf8 {[%clk 0:00:08.8]}
47. Kh4 {[%clk 0:00:11.8]} 47... Kg7 {[%clk 0:00:09.4]} 48. Rb4 {[%clk
0:00:12.4]} 48... Ra6 {[%clk 0:00:09.5]} 49. Rf4 {[%clk 0:00:12.6]} 49... Ra1
{[%clk 0:00:10.2]} 50. Kg3 {[%clk 0:00:12.6]} 50... Rg1+ {[%clk 0:00:10.6]} 51.
Kh2 {[%clk 0:00:12.8]} 51... Ra1 {[%clk 0:00:11.5]} 52. Kg3 {[%clk 0:00:13.2]}
52... Ra3+ {[%clk 0:00:12]} 53. Kh2 {[%clk 0:00:13.4]} 53... Ra2+ {[%clk
0:00:12.3]} 54. Kg3 {[%clk 0:00:13.6]} 54... Ra3+ {[%clk 0:00:13]} 55. Kh2
{[%clk 0:00:13.9]} 55... Ra2+ {[%clk 0:00:13.7]} 56. Kg3 {[%clk 0:00:14.4]}
56... Ra3+ {[%clk 0:00:14.3]} 1/2-1/2

[Event "Early-Titled-Tuesday-Blitz-September-05-2023"]
[Site "Chess.com"]
[Date "2023.09.05"]
[Round "4"]
[White "FARIZA2018"]
[Black "kingofthenil"]
[Result "0-1"]
[WhiteElo "2523"]
[BlackElo "2718"]
[TimeControl "180+1"]
[EndTime "8:38:18 PDT"]
[Termination "kingofthenil won on time"]

1. e4 {[%clk 0:03:00.9]} 1... e6 {[%clk 0:02:53.5]} 2. d4 {[%clk 0:03:00.6]}
2... d5 {[%clk 0:02:54.4]} 3. Nd2 {[%clk 0:03:00.7]} 3... c5 {[%clk 0:02:54.2]}
4. exd5 {[%clk 0:02:59.5]} 4... exd5 {[%clk 0:02:55.1]} 5. Ngf3 {[%clk
0:02:58.9]} 5... Nc6 {[%clk 0:02:55.4]} 6. Bb5 {[%clk 0:02:58.4]} 6... Bd6
{[%clk 0:02:51.1]} 7. O-O {[%clk 0:02:58.1]} 7... Ne7 {[%clk 0:02:51.7]} 8. dxc5
{[%clk 0:02:56.9]} 8... Bxc5 {[%clk 0:02:52.6]} 9. Nb3 {[%clk 0:02:56.9]} 9...
Bb6 {[%clk 0:02:53.1]} 10. Nbd4 {[%clk 0:02:54.1]} 10... O-O {[%clk 0:02:52.7]}
11. Be3 {[%clk 0:02:52.6]} 11... h6 {[%clk 0:02:50.3]} 12. c3 {[%clk 0:02:49.1]}
12... Bg4 {[%clk 0:02:50.4]} 13. Be2 {[%clk 0:02:45.7]} 13... Ng6 {[%clk
0:02:20.9]} 14. h3 {[%clk 0:02:44]} 14... Bd7 {[%clk 0:02:19.5]} 15. Bd3 {[%clk
0:02:37.4]} 15... Qf6 {[%clk 0:02:15.2]} 16. Bc2 {[%clk 0:02:28.7]} 16... Nf4
{[%clk 0:02:12.8]} 17. Kh1 {[%clk 0:02:01.9]} 17... Rfe8 {[%clk 0:02:02.5]} 18.
Qd2 {[%clk 0:01:23]} 18... Ng6 {[%clk 0:01:54.3]} 19. Rae1 {[%clk 0:01:21.7]}
19... Na5 {[%clk 0:01:52]} 20. Qd3 {[%clk 0:01:18.1]} 20... Nc4 {[%clk
0:01:50.6]} 21. Bc1 {[%clk 0:01:18.2]} 21... Rac8 {[%clk 0:01:48.3]} 22. Kg1
{[%clk 0:00:41.9]} 22... Nd6 {[%clk 0:01:42.5]} 23. a4 {[%clk 0:00:37.4]} 23...
Ne4 {[%clk 0:01:41.3]} 24. Be3 {[%clk 0:00:28.2]} 24... Nc5 {[%clk 0:01:40.4]}
25. Qd1 {[%clk 0:00:27.6]} 25... Nf4 {[%clk 0:01:36]} 26. Bxf4 {[%clk 0:00:23]}
26... Qxf4 {[%clk 0:01:36.9]} 27. Rxe8+ {[%clk 0:00:18.4]} 27... Rxe8 {[%clk
0:01:37.8]} 28. Re1 {[%clk 0:00:18.3]} 28... Ne4 {[%clk 0:01:38.3]} 29. Qd3
{[%clk 0:00:14.1]} 29... g6 {[%clk 0:01:36.5]} 30. Qd1 {[%clk 0:00:11.4]} 30...
a6 {[%clk 0:01:28]} 31. Re3 {[%clk 0:00:11.2]} 31... Kg7 {[%clk 0:01:24.5]} 32.
Bxe4 {[%clk 0:00:10.2]} 32... dxe4 {[%clk 0:01:22.8]} 33. Nd2 {[%clk 0:00:10]}
33... Bc6 {[%clk 0:00:47]} 34. Nf1 {[%clk 0:00:09.1]} 34... h5 {[%clk
0:00:44.4]} 35. Re2 {[%clk 0:00:07.6]} 35... Bd7 {[%clk 0:00:37.1]} 36. Ne3
{[%clk 0:00:07.6]} 36... Re5 {[%clk 0:00:31.4]} 37. Kf1 {[%clk 0:00:07]} 37...
Qh2 {[%clk 0:00:28.5]} 38. Ke1 {[%clk 0:00:06.4]} 38... Qg1+ {[%clk 0:00:17.1]}
39. Kd2 {[%clk 0:00:06.5]} 39... Qxd1+ {[%clk 0:00:18]} 40. Kxd1 {[%clk
0:00:06.8]} 40... Bxa4+ {[%clk 0:00:18.9]} 41. Kc1 {[%clk 0:00:06]} 41... Re8
{[%clk 0:00:15.5]} 42. Nc4 {[%clk 0:00:06.2]} 42... Bxd4 {[%clk 0:00:13.8]} 43.
cxd4 {[%clk 0:00:06.1]} 43... Rc8 {[%clk 0:00:13.8]} 0-1

[Event "Early-Titled-Tuesday-Blitz-September-05-2023"]
[Site "Chess.com"]
[Date "2023.09.05"]
[Round "4"]
[White "DawidCzerw"]
[Black "fastestmindalive"]
[Result "0-1"]
[WhiteElo "2513"]
[BlackElo "2713"]
[TimeControl "180+1"]
[EndTime "8:38:19 PDT"]
[Termination "fastestmindalive won by resignation"]

1. e4 {[%clk 0:03:00.9]} 1... c5 {[%clk 0:02:57.4]} 2. Nf3 {[%clk 0:03:01.2]}
2... d6 {[%clk 0:02:55.8]} 3. d4 {[%clk 0:03:01.7]} 3... cxd4 {[%clk 0:02:56.1]}
4. Nxd4 {[%clk 0:03:02.6]} 4... Nf6 {[%clk 0:02:56.6]} 5. Nc3 {[%clk 0:03:03]}
5... Nc6 {[%clk 0:02:57.2]} 6. f3 {[%clk 0:03:02.4]} 6... e5 {[%clk 0:02:55.3]}
7. Nb3 {[%clk 0:03:02.3]} 7... Be6 {[%clk 0:02:55]} 8. Nd5 {[%clk 0:03:02.4]}
8... Bxd5 {[%clk 0:02:51.1]} 9. exd5 {[%clk 0:03:03.3]} 9... Nb4 {[%clk
0:02:50.8]} 10. c4 {[%clk 0:02:50.4]} 10... a5 {[%clk 0:02:47.5]} 11. a3 {[%clk
0:02:43]} 11... Na6 {[%clk 0:02:45.3]} 12. Be3 {[%clk 0:02:38.8]} 12... Be7
{[%clk 0:02:43]} 13. Be2 {[%clk 0:02:35.4]} 13... Nd7 {[%clk 0:02:39.6]} 14. O-O
{[%clk 0:02:32.5]} 14... Bg5 {[%clk 0:02:33.2]} 15. Bxg5 {[%clk 0:02:21.2]}
15... Qxg5 {[%clk 0:02:30.9]} 16. Nxa5 {[%clk 0:02:16.8]} 16... Nac5 {[%clk
0:02:27.1]} 17. b4 {[%clk 0:02:14]} 17... Rxa5 {[%clk 0:02:23.4]} 18. bxa5
{[%clk 0:02:10.4]} 18... O-O {[%clk 0:02:22.8]} 19. f4 {[%clk 0:01:54.9]} 19...
exf4 {[%clk 0:02:15.6]} 20. Qd2 {[%clk 0:01:51.4]} 20... Re8 {[%clk 0:02:11.8]}
21. Rae1 {[%clk 0:01:45.4]} 21... Re3 {[%clk 0:02:10.1]} 22. Bf3 {[%clk
0:01:25.2]} 22... Ne5 {[%clk 0:02:04]} 23. Rxe3 {[%clk 0:01:16]} 23... fxe3
{[%clk 0:02:04.9]} 24. Qe2 {[%clk 0:01:15.4]} 24... f5 {[%clk 0:02:01]} 25. g3
{[%clk 0:00:39.7]} 25... f4 {[%clk 0:01:49.4]} 26. Qg2 {[%clk 0:00:23.7]} 26...
Nxc4 {[%clk 0:01:43.7]} 27. gxf4 {[%clk 0:00:23]} 27... Qf6 {[%clk 0:01:36]} 28.
Bg4 {[%clk 0:00:20.7]} 28... Qd4 {[%clk 0:01:16.5]} 29. Kh1 {[%clk 0:00:19.7]}
29... Ne4 {[%clk 0:01:02.3]} 30. Be6+ {[%clk 0:00:19.1]} 30... Kf8 {[%clk
0:01:02.2]} 31. f5 {[%clk 0:00:11]} 31... Nf2+ {[%clk 0:00:54.6]} 32. Kg1 {[%clk
0:00:11]} 32... e2 {[%clk 0:00:16.8]} 33. Qxf2 {[%clk 0:00:10.8]} 33... Qg4+
{[%clk 0:00:11.1]} 34. Kh1 {[%clk 0:00:10.8]} 34... Qe4+ {[%clk 0:00:08.2]} 35.
Kg1 {[%clk 0:00:10.9]} 35... Nd2 {[%clk 0:00:04.4]} 36. Re1 {[%clk 0:00:10.6]}
36... Nf3+ {[%clk 0:00:04.1]} 37. Qxf3 {[%clk 0:00:10.4]} 37... Qxf3 {[%clk
0:00:04.1]} 38. a6 {[%clk 0:00:10.3]} 38... bxa6 {[%clk 0:00:04]} 39. Bd7 {[%clk
0:00:10.9]} 39... Ke7 {[%clk 0:00:03.6]} 40. Bc8 {[%clk 0:00:11.1]} 40... Qe3+
{[%clk 0:00:02.3]} 41. Kg2 {[%clk 0:00:09.8]} 41... Qd3 {[%clk 0:00:01.7]} 42.
Kf2 {[%clk 0:00:09]} 42... Kf6 {[%clk 0:00:02]} 43. Rxe2 {[%clk 0:00:09.1]}
43... Qxd5 {[%clk 0:00:02.2]} 44. Re6+ {[%clk 0:00:09.1]} 44... Kg5 {[%clk
0:00:02.5]} 45. Re3 {[%clk 0:00:08.9]} 45... Qd2+ {[%clk 0:00:02.6]} 46. Kf3
{[%clk 0:00:09.1]} 46... Qd1+ {[%clk 0:00:03.1]} 47. Kf2 {[%clk 0:00:09.5]}
47... Qc2+ {[%clk 0:00:03.5]} 48. Re2 {[%clk 0:00:10]} 48... Qxc8 {[%clk
0:00:04.4]} 0-1

[Event "Early-Titled-Tuesday-Blitz-September-05-2023"]
[Site "Chess.com"]
[Date "2023.09.05"]
[Round "4"]
[White "DanielDardha2005"]
[Black "AsadliVugar"]
[Result "1-0"]
[WhiteElo "2961"]
[BlackElo "2801"]
[TimeControl "180+1"]
[EndTime "8:38:20 PDT"]
[Termination "DanielDardha2005 won by resignation"]

1. Nf3 {[%clk 0:03:00.9]} 1... Nf6 {[%clk 0:02:59.8]} 2. c4 {[%clk 0:03:00.7]}
2... g6 {[%clk 0:03:00]} 3. Nc3 {[%clk 0:03:00.7]} 3... Bg7 {[%clk 0:03:00.3]}
4. e4 {[%clk 0:03:00.9]} 4... d6 {[%clk 0:03:00.8]} 5. d4 {[%clk 0:03:00.4]}
5... O-O {[%clk 0:03:01.2]} 6. Be2 {[%clk 0:03:01]} 6... e5 {[%clk 0:03:01.8]}
7. d5 {[%clk 0:03:01]} 7... a5 {[%clk 0:02:58.9]} 8. Bg5 {[%clk 0:03:01.5]} 8...
Na6 {[%clk 0:02:57.3]} 9. Nd2 {[%clk 0:03:01.5]} 9... Qe8 {[%clk 0:02:55.1]} 10.
O-O {[%clk 0:02:59.7]} 10... h6 {[%clk 0:02:50]} 11. Be3 {[%clk 0:02:59.4]}
11... Nd7 {[%clk 0:02:45.6]} 12. a3 {[%clk 0:02:57.3]} 12... Nb6 {[%clk
0:02:44.1]} 13. b3 {[%clk 0:02:37.5]} 13... f5 {[%clk 0:02:38.7]} 14. f3 {[%clk
0:02:37.8]} 14... f4 {[%clk 0:02:27.3]} 15. Bf2 {[%clk 0:02:37]} 15... g5 {[%clk
0:02:27.3]} 16. Rb1 {[%clk 0:02:35.2]} 16... Nd7 {[%clk 0:02:22.6]} 17. b4
{[%clk 0:02:35.3]} 17... axb4 {[%clk 0:02:22.8]} 18. axb4 {[%clk 0:02:36.2]}
18... Nf6 {[%clk 0:02:23.1]} 19. c5 {[%clk 0:02:33.9]} 19... Qg6 {[%clk
0:02:17]} 20. cxd6 {[%clk 0:02:04.2]} 20... g4 {[%clk 0:01:53.9]} 21. fxg4
{[%clk 0:01:25.2]} 21... Nxg4 {[%clk 0:01:53.7]} 22. dxc7 {[%clk 0:01:16.4]}
22... Nxf2 {[%clk 0:01:53.6]} 23. Rxf2 {[%clk 0:01:16.1]} 23... Nxc7 {[%clk
0:01:54]} 24. Bh5 {[%clk 0:01:05.9]} 24... Qg5 {[%clk 0:01:36.1]} 25. d6 {[%clk
0:01:04.7]} 25... Ne6 {[%clk 0:01:35.4]} 26. Nd5 {[%clk 0:01:04.7]} 26... Nd4
{[%clk 0:01:29.6]} 27. Nb6 {[%clk 0:00:54.2]} 27... Ra2 {[%clk 0:01:11.1]} 28.
d7 {[%clk 0:00:18]} 28... Bxd7 {[%clk 0:01:11.4]} 29. Nxd7 {[%clk 0:00:18.9]}
29... Rd8 {[%clk 0:01:12.1]} 30. Qg4 {[%clk 0:00:19.1]} 30... Qe7 {[%clk
0:00:44.4]} 31. Nc5 {[%clk 0:00:14.4]} 31... b6 {[%clk 0:00:44.3]} 32. Nd3
{[%clk 0:00:12.5]} 32... Nc6 {[%clk 0:00:34.7]} 33. Nf3 {[%clk 0:00:10]} 33...
Ra3 {[%clk 0:00:31]} 34. b5 {[%clk 0:00:09]} 34... Raxd3 {[%clk 0:00:28.1]} 35.
bxc6 {[%clk 0:00:08.9]} 35... Rd1+ {[%clk 0:00:27.8]} 36. Rf1 {[%clk 0:00:09.6]}
36... Rxb1 {[%clk 0:00:26]} 37. Rxb1 {[%clk 0:00:09.3]} 37... Qc5+ {[%clk
0:00:26.4]} 38. Kh1 {[%clk 0:00:09.8]} 38... Qc2 {[%clk 0:00:27]} 39. Qe6+
{[%clk 0:00:09.1]} 39... Kh8 {[%clk 0:00:27]} 40. Rg1 {[%clk 0:00:09.2]} 40...
Qc5 {[%clk 0:00:20.9]} 41. Nh4 {[%clk 0:00:06.1]} 41... b5 {[%clk 0:00:18.7]}
42. Ng6+ {[%clk 0:00:05.1]} 42... Kh7 {[%clk 0:00:17.7]} 43. Qf5 {[%clk
0:00:05]} 43... Kg8 {[%clk 0:00:17.6]} 44. Qe6+ {[%clk 0:00:04]} 44... Kh7
{[%clk 0:00:17.7]} 45. Ne7 {[%clk 0:00:04.5]} 45... Rf8 {[%clk 0:00:15.1]} 46.
Qg6+ {[%clk 0:00:04.1]} 46... Kh8 {[%clk 0:00:15.7]} 47. Qe6 {[%clk 0:00:04.9]}
47... Rd8 {[%clk 0:00:15.4]} 48. Bf7 {[%clk 0:00:05.1]} 48... b4 {[%clk
0:00:12.2]} 49. Ng6+ {[%clk 0:00:05.3]} 49... Kh7 {[%clk 0:00:12.8]} 50. Qf5
{[%clk 0:00:06.2]} 50... Qxc6 {[%clk 0:00:08.2]} 51. Nf8+ {[%clk 0:00:06.3]} 1-0

[Event "Early-Titled-Tuesday-Blitz-September-05-2023"]
[Site "Chess.com"]
[Date "2023.09.05"]
[Round "4"]
[White "MarcoRiehle"]
[Black "ozates"]
[Result "1/2-1/2"]
[WhiteElo "2798"]
[BlackElo "2570"]
[TimeControl "180+1"]
[EndTime "8:38:25 PDT"]
[Termination "Game drawn by stalemate"]

1. e4 {[%clk 0:02:54.9]} 1... e5 {[%clk 0:02:57]} 2. Nf3 {[%clk 0:02:54.5]} 2...
Nc6 {[%clk 0:02:57.6]} 3. Bc4 {[%clk 0:02:54.2]} 3... Nf6 {[%clk 0:02:56.8]} 4.
d4 {[%clk 0:02:53.7]} 4... exd4 {[%clk 0:02:56.1]} 5. O-O {[%clk 0:02:53.8]}
5... Nxe4 {[%clk 0:02:56.3]} 6. Nc3 {[%clk 0:02:53.9]} 6... Nxc3 {[%clk
0:02:44.7]} 7. bxc3 {[%clk 0:02:52.2]} 7... d5 {[%clk 0:02:44.7]} 8. Bd3 {[%clk
0:02:49.2]} 8... Be7 {[%clk 0:02:34.1]} 9. Re1 {[%clk 0:02:49.2]} 9... Be6
{[%clk 0:02:29.3]} 10. cxd4 {[%clk 0:02:47.8]} 10... O-O {[%clk 0:02:26.9]} 11.
c3 {[%clk 0:02:48]} 11... h6 {[%clk 0:02:17.8]} 12. Bc2 {[%clk 0:02:44.7]} 12...
Qd7 {[%clk 0:01:59.5]} 13. Qd3 {[%clk 0:02:41.8]} 13... f5 {[%clk 0:01:59.2]}
14. Bf4 {[%clk 0:02:33.5]} 14... Rae8 {[%clk 0:01:55.4]} 15. Rab1 {[%clk
0:02:32.2]} 15... Bd6 {[%clk 0:01:18.9]} 16. Bxd6 {[%clk 0:02:30.3]} 16... Qxd6
{[%clk 0:01:19.8]} 17. Rxb7 {[%clk 0:02:29]} 17... Rb8 {[%clk 0:01:19.8]} 18.
Rxb8 {[%clk 0:02:25.8]} 18... Rxb8 {[%clk 0:01:20.5]} 19. Ne5 {[%clk 0:02:22.4]}
19... Nxe5 {[%clk 0:01:19.7]} 20. Rxe5 {[%clk 0:02:21]} 20... Rb2 {[%clk
0:00:59.5]} 21. Bb3 {[%clk 0:02:20.7]} 21... c6 {[%clk 0:00:54.1]} 22. h3 {[%clk
0:02:17.6]} 22... Kf7 {[%clk 0:00:52.5]} 23. Qd1 {[%clk 0:02:10.2]} 23... a5
{[%clk 0:00:49.7]} 24. Qh5+ {[%clk 0:02:00]} 24... Kf6 {[%clk 0:00:47.3]} 25.
Qh4+ {[%clk 0:01:54]} 25... Kf7 {[%clk 0:00:46.3]} 26. Kh2 {[%clk 0:01:51.7]}
26... a4 {[%clk 0:00:40.3]} 27. Bxa4 {[%clk 0:01:50.8]} 27... Rxa2 {[%clk
0:00:40.9]} 28. Bd1 {[%clk 0:01:51.3]} 28... c5 {[%clk 0:00:32.2]} 29. Bh5+
{[%clk 0:01:49.6]} 29... g6 {[%clk 0:00:32.6]} 30. Bf3 {[%clk 0:01:45.9]} 30...
h5 {[%clk 0:00:30.4]} 31. Qg3 {[%clk 0:01:35.2]} 31... cxd4 {[%clk 0:00:06.8]}
32. cxd4 {[%clk 0:01:36.1]} 32... Ra6 {[%clk 0:00:04.3]} 33. Qg5 {[%clk
0:01:32.7]} 33... Qe7 {[%clk 0:00:04.2]} 34. Qh6 {[%clk 0:01:26.8]} 34... Qf6
{[%clk 0:00:04.2]} 35. Re1 {[%clk 0:01:16.7]} 35... Qxd4 {[%clk 0:00:04]} 36.
Rb1 {[%clk 0:01:17.3]} 36... Ra7 {[%clk 0:00:03.6]} 37. Qg5 {[%clk 0:00:51.3]}
37... Qf6 {[%clk 0:00:03.8]} 38. Qf4 {[%clk 0:00:50.9]} 38... Kg7 {[%clk
0:00:03.9]} 39. Rb6 {[%clk 0:00:46.6]} 39... Re7 {[%clk 0:00:04.4]} 40. Bxd5
{[%clk 0:00:44.8]} 40... Kf7 {[%clk 0:00:04.8]} 41. Rxe6 {[%clk 0:00:39.2]}
41... Rxe6 {[%clk 0:00:05.1]} 42. Qd6 {[%clk 0:00:39.3]} 42... Qe7 {[%clk
0:00:05]} 43. Qc6 {[%clk 0:00:32.2]} 43... Kf6 {[%clk 0:00:05.1]} 44. Qc3+
{[%clk 0:00:31.3]} 44... Re5 {[%clk 0:00:05.1]} 45. f4 {[%clk 0:00:31.3]} 45...
Qd6 {[%clk 0:00:05.6]} 46. Bb3 {[%clk 0:00:22.2]} 46... g5 {[%clk 0:00:05.8]}
47. g3 {[%clk 0:00:14.3]} 47... h4 {[%clk 0:00:04.7]} 48. fxe5+ {[%clk
0:00:11.7]} 48... Qxe5 {[%clk 0:00:04.9]} 49. Qxe5+ {[%clk 0:00:12.6]} 49...
Kxe5 {[%clk 0:00:05.3]} 50. gxh4 {[%clk 0:00:13.5]} 50... gxh4 {[%clk
0:00:05.8]} 51. Kg2 {[%clk 0:00:14]} 51... Kf6 {[%clk 0:00:06.5]} 52. Kf3 {[%clk
0:00:14.5]} 52... Kg5 {[%clk 0:00:06.7]} 53. Bc2 {[%clk 0:00:14]} 53... f4
{[%clk 0:00:07]} 54. Bd3 {[%clk 0:00:13.8]} 54... Kf6 {[%clk 0:00:07.2]} 55.
Kxf4 {[%clk 0:00:14.7]} 55... Kg7 {[%clk 0:00:07.9]} 56. Kg5 {[%clk 0:00:15.3]}
56... Kh8 {[%clk 0:00:08.8]} 57. Kxh4 {[%clk 0:00:16]} 57... Kg8 {[%clk
0:00:09.7]} 58. Kg5 {[%clk 0:00:16.9]} 58... Kh8 {[%clk 0:00:10.6]} 59. h4
{[%clk 0:00:17.8]} 59... Kg8 {[%clk 0:00:11.5]} 60. h5 {[%clk 0:00:18.7]} 60...
Kh8 {[%clk 0:00:12.4]} 61. h6 {[%clk 0:00:19.6]} 61... Kg8 {[%clk 0:00:13.3]}
62. Kg6 {[%clk 0:00:20.5]} 62... Kh8 {[%clk 0:00:14.2]} 63. h7 {[%clk
0:00:21.4]} 1/2-1/2